{"text_format":"1","workbook":"xlsx","n_sheets":8,"sheets":["Dataset","Fill Handle","Keyboard Shortcut","Array Formula","Fill Option","Double-Clicking Fill Handle","VBA Code","Copy and Paste Formula"],"not_rendered":{"charts":0,"images":0,"macros":1,"external_links":0,"defined_names":0,"comments":0,"pivot_tables":0},"unopened":[],"bounds":{"document_bytes":16777216,"sheet_cells":100000,"rows_first":2000,"rows_last":500,"rows_between":2000,"halvings":0,"cell_chars":16384,"cell_head_chars":4096},"cells_cut":0,"cells_raw":0,"read":"whole","date_system":"1900"}

{"sheet":"Dataset","index":0,"n_rows":9,"n_cols":4,"rows_kept":9,"cut":false,"hidden":false,"merged":[[1,1,1,3]]}
[]
[null,"Dataset"]
[]
[null,"Name","2022 Sales","2021 Sales"]
[null,"Sam",2435,2852]
[null,"Adam",4025,2493]
[null,"Anna",4767,4743]
[null,"Harry",4533,3294]
[null,"Tyler",1591,3796]

{"sheet":"Fill Handle","index":1,"n_rows":9,"n_cols":15,"rows_kept":9,"cut":false,"hidden":false,"merged":[[1,1,1,4],[1,11,1,14]]}
[]
[null,"Use of Fill Handle Tool",null,null,null,null,null,null,null,null,null,"Do Yourself"]
[]
[null,"Name","2022 Sales","2021 Sales","Difference",null,null,null,null,null,null,"Name","2022 Sales","2021 Sales","Difference"]
[null,"Sam",2435,2852,{"$f":"C5-D5","v":-417},null,null,null,null,null,null,"Sam",2435,2852]
[null,"Adam",4025,2493,{"$f":"C6-D6","v":1532},null,null,null,null,null,null,"Adam",4025,2493]
[null,"Anna",4767,4743,24,null,null,null,null,null,null,"Anna",4767,4743]
[null,"Harry",4533,3294,1239,null,null,null,null,null,null,"Harry",4533,3294]
[null,"Tyler",1591,3796,-2205,null,null,null,null,null,null,"Tyler",1591,3796]

{"sheet":"Keyboard Shortcut","index":2,"n_rows":9,"n_cols":15,"rows_kept":9,"cut":false,"hidden":false,"merged":[[1,1,1,4],[1,11,1,14]]}
[]
[null,"Apply Keyboard Shortcut",null,null,null,null,null,null,null,null,null,"Do Yourself"]
[]
[null,"Name","2022 Sales","2021 Sales","Difference",null,null,null,null,null,null,"Name","2022 Sales","2021 Sales","Difference"]
[null,"Sam",2435,2852,{"$f":"C5-D5","v":-417},null,null,null,null,null,null,"Sam",2435,2852]
[null,"Adam",4025,2493,{"$f":"C6-D6","v":1532},null,null,null,null,null,null,"Adam",4025,2493]
[null,"Anna",4767,4743,24,null,null,null,null,null,null,"Anna",4767,4743]
[null,"Harry",4533,3294,1239,null,null,null,null,null,null,"Harry",4533,3294]
[null,"Tyler",1591,3796,-2205,null,null,null,null,null,null,"Tyler",1591,3796]

{"sheet":"Array Formula","index":3,"n_rows":9,"n_cols":15,"rows_kept":9,"cut":false,"hidden":false,"merged":[[1,1,1,4],[1,11,1,14]]}
[]
[null,"Utilize Array Formula",null,null,null,null,null,null,null,null,null,"Do Yourself"]
[]
[null,"Name","2022 Sales","2021 Sales","Difference",null,null,null,null,null,null,"Name","2022 Sales","2021 Sales","Difference"]
[null,"Sam",2435,2852,{"$f":"C5:C9-D5:D9","v":-417},null,null,null,null,null,null,"Sam",2435,2852]
[null,"Adam",4025,2493,1532,null,null,null,null,null,null,"Adam",4025,2493]
[null,"Anna",4767,4743,24,null,null,null,null,null,null,"Anna",4767,4743]
[null,"Harry",4533,3294,1239,null,null,null,null,null,null,"Harry",4533,3294]
[null,"Tyler",1591,3796,-2205,null,null,null,null,null,null,"Tyler",1591,3796]

{"sheet":"Fill Option","index":4,"n_rows":9,"n_cols":15,"rows_kept":9,"cut":false,"hidden":false,"merged":[[1,1,1,4],[1,11,1,14]]}
[]
[null,"Use of Fill Option",null,null,null,null,null,null,null,null,null,"Do Yourself"]
[]
[null,"Name","2022 Sales","2021 Sales","Difference",null,null,null,null,null,null,"Name","2022 Sales","2021 Sales","Difference"]
[null,"Sam",2435,2852,{"$f":"C5-D5","v":-417},null,null,null,null,null,null,"Sam",2435,2852]
[null,"Adam",4025,2493,{"$f":"C6-D6","v":1532},null,null,null,null,null,null,"Adam",4025,2493]
[null,"Anna",4767,4743,24,null,null,null,null,null,null,"Anna",4767,4743]
[null,"Harry",4533,3294,1239,null,null,null,null,null,null,"Harry",4533,3294]
[null,"Tyler",1591,3796,-2205,null,null,null,null,null,null,"Tyler",1591,3796]

{"sheet":"Double-Clicking Fill Handle","index":5,"n_rows":9,"n_cols":15,"rows_kept":9,"cut":false,"hidden":false,"merged":[[1,1,1,4],[1,11,1,14]]}
[]
[null,"Double-Click Fill Handle Tool",null,null,null,null,null,null,null,null,null,"Do Yourself"]
[]
[null,"Name","2022 Sales","2021 Sales","Difference",null,null,null,null,null,null,"Name","2022 Sales","2021 Sales","Difference"]
[null,"Sam",2435,2852,{"$f":"C5-D5","v":-417},null,null,null,null,null,null,"Sam",2435,2852]
[null,"Adam",4025,2493,{"$f":"C6-D6","v":1532},null,null,null,null,null,null,"Adam",4025,2493]
[null,"Anna",4767,4743,24,null,null,null,null,null,null,"Anna",4767,4743]
[null,"Harry",4533,3294,1239,null,null,null,null,null,null,"Harry",4533,3294]
[null,"Tyler",1591,3796,-2205,null,null,null,null,null,null,"Tyler",1591,3796]

{"sheet":"VBA Code","index":6,"n_rows":9,"n_cols":15,"rows_kept":9,"cut":false,"hidden":false,"merged":[[1,1,1,4],[1,11,1,14]]}
[]
[null,"Apply VBA Code",null,null,null,null,null,null,null,null,null,"Do Yourself"]
[]
[null,"Name","2022 Sales","2021 Sales","Difference",null,null,null,null,null,null,"Name","2022 Sales","2021 Sales","Difference"]
[null,"Sam",2435,2852,{"$f":"C5-D5","v":-417},null,null,null,null,null,null,"Sam",2435,2852]
[null,"Adam",4025,2493,{"$f":"C6-D6","v":1532},null,null,null,null,null,null,"Adam",4025,2493]
[null,"Anna",4767,4743,24,null,null,null,null,null,null,"Anna",4767,4743]
[null,"Harry",4533,3294,1239,null,null,null,null,null,null,"Harry",4533,3294]
[null,"Tyler",1591,3796,-2205,null,null,null,null,null,null,"Tyler",1591,3796]

{"sheet":"Copy and Paste Formula","index":7,"n_rows":9,"n_cols":15,"rows_kept":9,"cut":false,"hidden":false,"merged":[[1,1,1,4],[1,11,1,14]]}
[]
[null,"Use of Copy and Paste Option",null,null,null,null,null,null,null,null,null,"Do Yourself"]
[]
[null,"Name","2022 Sales","2021 Sales","Difference",null,null,null,null,null,null,"Name","2022 Sales","2021 Sales","Difference"]
[null,"Sam",2435,2852,{"$f":"C5-D5","v":-417},null,null,null,null,null,null,"Sam",2435,2852]
[null,"Adam",4025,2493,{"$f":"C6-D6","v":1532},null,null,null,null,null,null,"Adam",4025,2493]
[null,"Anna",4767,4743,24,null,null,null,null,null,null,"Anna",4767,4743]
[null,"Harry",4533,3294,1239,null,null,null,null,null,null,"Harry",4533,3294]
[null,"Tyler",1591,3796,-2205,null,null,null,null,null,null,"Tyler",1591,3796]